fUSD/lending_fUSD_20250826
["ID","MTS","AMOUNT","RATE_DAILY","PERIOD"]
[381508296,1756241475409,-400.0,0.00027397,5]
[381508297,1756241475418,-1145.7,0.00027397,5]
[381508298,1756241475427,-490.0,0.00027397,5]
[381508299,1756241475437,-620.73,0.00027397,5]
[381508300,1756241475446,-400.0,0.00027397,5]
[381508301,1756241475455,-400.0,0.00027397,5]
[381508302,1756241475464,-720.43,0.00027397,5]
[381508303,1756241475475,-555.0,0.00027397,5]
[381508304,1756241475485,-400.0,0.00027397,5]
[381508305,1756241475496,-1412.4,0.00027397,5]
[381508306,1756241475505,-400.0,0.00027397,5]
[381508307,1756241475515,-1006.36,0.00027397,5]
[381508308,1756241475524,-490.0,0.00027397,5]
[381508309,1756241475533,-400.0,0.00027397,5]
[381508310,1756241475543,-544.04,0.00027397,5]
[381508311,1756241475552,-400.0,0.00027397,5]
[381508312,1756241475561,-479.76,0.00027397,5]
[381508313,1756241475570,-433.83,0.00027397,5]
[381508314,1756241475579,-400.0,0.00027397,5]
[381508315,1756241475588,-400.0,0.00027397,5]
[381508316,1756241475597,-400.0,0.00027397,5]
[381508317,1756241475606,-595.9,0.00027397,5]
[381508318,1756241475615,-609.98,0.00027397,5]
[381508319,1756241475625,-400.0,0.00027397,5]
[381508320,1756241475634,-400.0,0.00027397,5]
[381508321,1756241475645,-400.0,0.00027397,5]
[381508322,1756241475655,-708.57,0.00027397,5]
[381508323,1756241475664,-401.90930674,0.00027397,5]
[381508324,1756241475673,-400.0,0.00027397,5]
[381508325,1756241475683,-400.0,0.00027397,5]
[381508326,1756241475691,-400.0,0.00027397,5]
[381508327,1756241475701,-400.0,0.00027397,5]
[381508328,1756241475710,-400.0,0.00027397,5]
[381508329,1756241475720,-400.0,0.00027397,5]
[381508330,1756241475730,-713.14,0.00027397,5]
[381508331,1756241475740,-400.0,0.00027397,5]
[381508332,1756241475749,-793.45,0.00027397,5]
[381508333,1756241475758,-400.0,0.00027397,5]
[381508334,1756241475767,-949.54,0.00027397,5]
[381508335,1756241475776,-400.0,0.00027397,5]
[381508336,1756241475786,-400.0,0.00027397,5]
[381508337,1756241475797,-1047.47,0.00027397,5]
[381508338,1756241475806,-400.0,0.00027397,5]
[381508339,1756241475815,-400.0,0.00027397,5]
[381508340,1756241475826,-400.0,0.00027397,5]
[381508341,1756241475837,-733.69,0.00027397,5]
[381508342,1756241475846,-504.78,0.00027397,5]
[381508343,1756241475856,-400.0,0.00027397,5]
[381508344,1756241475865,-2000.0,0.00027397,30]
[381508345,1756241475874,-1082.8,0.00027397,5]
[381508346,1756241475884,-400.0,0.00027397,5]
[381508347,1756241475893,-400.0,0.00027397,5]
[381508348,1756241475902,-400.0,0.00027397,5]
[381508349,1756241475911,-400.0,0.00027397,5]
[381508350,1756241475922,-906.45,0.00027397,5]
[381508351,1756241475931,-698.34,0.00027397,5]
[381508352,1756241475940,-400.0,0.00027397,5]
[381508353,1756241475949,-400.0,0.00027397,5]
[381508354,1756241475958,-437.18,0.00027397,5]
[381508355,1756241475967,-490.0,0.00027397,5]
[381508356,1756241475976,-490.0,0.00027397,5]
[381508357,1756241475985,-490.0,0.00027397,5]
[381508358,1756241475994,-861.01,0.00027397,5]
[381508359,1756241476004,-788.89,0.00027397,5]
[381508360,1756241476013,-746.55,0.00027397,5]
[381508361,1756241476023,-400.54064589,0.00027397,5]
[381508362,1756241476032,-490.0,0.00027397,5]
[381508363,1756241476041,-724.53,0.00027397,5]
[381508364,1756241476051,-406.48,0.00027397,5]
[381508365,1756241476060,-400.0,0.00027397,5]
[381508366,1756241476070,-400.0,0.00027397,5]
[381508367,1756241476079,-1276.72,0.00027397,5]
[381508368,1756241476089,-400.0,0.00027397,5]
[381508369,1756241476098,-400.0,0.00027397,5]
[381508370,1756241476107,-490.0,0.00027397,5]
[381508371,1756241476117,-420.65,0.00027397,5]
[381508372,1756241476127,-400.0,0.00027397,5]
[381508373,1756241476136,-400.0,0.00027397,5]
[381508374,1756241476146,-400.0,0.00027397,5]
[381508375,1756241476155,-582.17,0.00027397,5]
[381508376,1756241476165,-400.0,0.00027397,5]
[381508377,1756241476174,-400.0,0.00027397,5]
[381508378,1756241476183,-665.66,0.00027397,5]
[381508379,1756241476193,-400.0,0.00027397,5]
[381508380,1756241476203,-765.82,0.00027397,5]
[381508381,1756241476212,-1400.92,0.00027397,5]
[381508382,1756241476221,-400.0,0.00027397,5]
[381508383,1756241476231,-417.05,0.00027397,5]
[381508384,1756241476240,-400.0,0.00027397,5]
[381508385,1756241476250,-400.0,0.00027397,5]
[381508386,1756241476260,-479.39,0.00027397,5]
[381508387,1756241476269,-400.0,0.00027397,5]
[381508388,1756241476278,-400.0,0.00027397,5]
[381508389,1756241476288,-603.27,0.00027397,5]
[381508390,1756241476299,-400.0,0.00027397,5]
[381508391,1756241476308,-954.1,0.00027397,5]
[381508392,1756241476318,-742.44,0.00027397,5]
[381508393,1756241476330,-400.0,0.00027397,5]
[381508394,1756241476340,-400.0,0.00027397,5]
[381508395,1756241476350,-400.27991265,0.00027397,5]
[381508396,1756241476359,-800.07,0.00027397,5]
[381508397,1756241476368,-490.0,0.00027397,5]
[381508398,1756241476378,-400.0,0.00027397,5]
[381508399,1756241476387,-400.0,0.00027397,5]
[381508400,1756241476397,-500.0,0.00027397,5]
[381508401,1756241476406,-400.0,0.00027397,5]
[381508402,1756241476416,-500.0,0.00027397,5]
[381508403,1756241476425,-500.0,0.00027397,5]
[381508404,1756241476435,-569.16458329,0.00027397,5]
[381508405,1756241476444,-448.95,0.00027397,5]
[381508406,1756241476454,-413.49,0.00027397,5]
[381508407,1756241476464,-11416.62,0.00027397,5]
[381508408,1756241476473,-400.0,0.00027397,5]
[381508409,1756241476483,-400.0,0.00027397,5]
[381508410,1756241476493,-496.62,0.00027397,5]
[381508411,1756241476503,-400.0,0.00027397,5]
[381508412,1756241476513,-400.41392886,0.00027397,5]
[381508413,1756241476522,-400.0,0.00027397,5]
[381508414,1756241476532,-490.0,0.00027397,5]
[381508415,1756241476542,-400.0,0.00027397,5]
[381508416,1756241476552,-1047.34,0.00027397,5]
[381508417,1756241476562,-618.16,0.00027397,5]
[381508418,1756241476571,-400.0,0.00027397,5]
[381508419,1756241476581,-400.0,0.00027397,5]
[381508420,1756241476590,-425.8796337,0.00027397,5]
[381508421,1756241476599,-1127.57,0.00027397,5]
[381508422,1756241476609,-1170.56,0.00027397,5]
[381508423,1756241476619,-409.45,0.00027397,5]
[381508424,1756241476628,-400.0,0.00027397,5]
[381508425,1756241476638,-400.0,0.00027397,5]
[381508426,1756241476650,-400.0,0.00027397,5]
[381508427,1756241476659,-400.0,0.00027397,5]
[381508428,1756241476669,-651.37,0.00027397,5]
[381508429,1756241476680,-400.0,0.00027397,5]
[381508430,1756241476692,-1154.93,0.00027397,5]
[381508431,1756241476703,-873.49,0.00027397,5]
[381508432,1756241476716,-631.06,0.00027397,5]
[381508433,1756241476728,-671.09,0.00027397,5]
[381508434,1756241476740,-400.0,0.00027397,5]
[381508435,1756241476751,-400.0,0.00027397,5]
[381508436,1756241476760,-1026.44,0.00027397,5]
[381508437,1756241476770,-400.0,0.00027397,5]
[381508438,1756241476779,-490.0,0.00027397,5]
[381508439,1756241476791,-1462.51,0.00027397,5]
[381508440,1756241476801,-400.0,0.00027397,5]
[381508441,1756241476811,-833.65,0.00027397,5]
[381508442,1756241476820,-621.72,0.00027397,5]
[381508443,1756241476830,-705.39,0.00027397,5]
[381508444,1756241476841,-400.0,0.00027397,5]
[381508445,1756241476852,-594.32,0.00027397,5]
[381508446,1756241476862,-500.92,0.00027397,5]
[381508447,1756241476872,-400.0,0.00027397,5]
[381508448,1756241476882,-1064.51,0.00027397,5]
[381508449,1756241476893,-400.0,0.00027397,5]
[381508450,1756241476903,-709.48,0.00027397,5]
[381508451,1756241476913,-786.02,0.00027397,5]
[381508452,1756241476923,-2056.83,0.00027397,5]
[381508453,1756241476933,-645.93,0.00027397,5]
[381508454,1756241476943,-673.85,0.00027397,5]
[381508455,1756241476953,-400.0,0.00027397,5]
[381508456,1756241476963,-502.57,0.00027397,5]
[381508457,1756241476974,-400.0,0.00027397,5]
[381508458,1756241476984,-597.42,0.00027397,5]
[381508459,1756241476994,-400.0,0.00027397,5]
[381508460,1756241477004,-400.0,0.00027397,5]
[381508461,1756241477014,-400.0,0.00027397,5]
[381508462,1756241477024,-400.0,0.00027397,5]
[381508463,1756241477034,-1026.17,0.00027397,5]
[381508464,1756241477048,-400.0,0.00027397,5]
[381508465,1756241477058,-334.26127589,0.00027397,5]
[381508466,1756241477069,-400.0,0.00027397,5]
[381508467,1756241477081,-1701.54,0.00027397,5]
[381508468,1756241477091,-400.0,0.00027397,5]
[381508469,1756241477101,-400.0,0.00027397,5]
[381508470,1756241477110,-400.0,0.00027397,5]
[381508471,1756241477120,-592.55,0.00027397,5]
[381508472,1756241477130,-400.0,0.00027397,5]
[381508473,1756241477139,-400.0,0.00027397,5]
[381508474,1756241477149,-490.0,0.00027397,5]
[381508475,1756241477159,-500.0,0.00027397,5]
[381508476,1756241477169,-480.0,0.00027397,5]
[381508477,1756241477179,-539.64,0.00027397,5]
[381508478,1756241477188,-490.0,0.00027397,5]
[381508479,1756241477198,-490.0,0.00027397,5]
[381508480,1756241477207,-490.0,0.00027397,5]
[381508481,1756241477217,-1055.15,0.00027397,5]
[381508482,1756241477227,-400.0,0.00027397,5]
[381508483,1756241477236,-759.0,0.00027397,5]
[381508484,1756241477246,-400.0,0.00027397,5]
[381508485,1756241477257,-267.55297506,0.00027397,5]
[381508486,1756241477267,-400.0,0.00027397,5]
[381508487,1756241477277,-826.67,0.00027397,5]
[381508488,1756241477287,-768.63,0.00027397,5]
[381508489,1756241477299,-400.0,0.00027397,5]
[381508490,1756241477309,-1039.47,0.00027397,5]
[381508491,1756241477319,-490.0,0.00027397,5]
[381508492,1756241477328,-400.0,0.00027397,5]
[381508493,1756241477339,-551.82,0.00027397,5]
[381508494,1756241477348,-400.0,0.00027397,5]
[381508495,1756241477358,-1099.04,0.00027397,5]
[381508496,1756241477368,-538.35,0.00027397,5]
[381508497,1756241477378,-1318.41,0.00027397,5]
[381508498,1756241477387,-400.0,0.00027397,5]
[381508499,1756241477398,-400.0,0.00027397,5]
[381508500,1756241477407,-1083.63,0.00027397,5]
[381508501,1756241477417,-400.0,0.00027397,5]
[381508502,1756241477426,-400.0,0.00027397,5]
[381508503,1756241477436,-400.0,0.00027397,5]
[381508504,1756241477446,-402.44792485,0.00027397,5]
[381508505,1756241477456,-400.0,0.00027397,5]
[381508506,1756241477466,-400.0,0.00027397,5]
[381508507,1756241477475,-518.43,0.00027397,5]
[381508508,1756241477485,-490.0,0.00027397,5]
[381508509,1756241477495,-400.0,0.00027397,5]
[381508510,1756241477505,-1292.6,0.00027397,5]
[381508511,1756241477515,-400.15283415,0.00027397,5]
[381508512,1756241477524,-400.0,0.00027397,5]
[381508513,1756241477534,-400.0,0.00027397,5]
[381508514,1756241477544,-400.0,0.00027397,5]
[381508515,1756241477554,-276.06521536,0.00027397,5]
[381508516,1756241477564,-400.0,0.00027397,5]
[381508517,1756241477574,-400.0,0.00027397,5]
[381508518,1756241477584,-400.0,0.00027397,5]
[381508519,1756241477595,-400.0,0.00027397,5]
[381508520,1756241477607,-685.3,0.00027397,5]
[381508521,1756241477618,-400.0,0.00027397,5]
[381508522,1756241477628,-400.0,0.00027397,5]
[381508523,1756241477640,-400.0,0.00027397,5]
[381508524,1756241477651,-400.0,0.00027397,5]
[381508525,1756241477661,-400.0,0.00027397,5]
[381508526,1756241477671,-408.52,0.00027397,5]
[381508527,1756241477680,-400.0,0.00027397,5]
[381508528,1756241477690,-1838.42,0.00027397,5]
[381508529,1756241477700,-500.0,0.00027397,5]
[381508530,1756241477709,-400.0,0.00027397,5]
[381508531,1756241477719,-400.0,0.00027397,5]
[381508532,1756241477731,-500.0,0.00027397,5]
[381508533,1756241477741,-490.0,0.00027397,5]
[381508534,1756241477751,-400.0,0.00027397,5]
[381508535,1756241477761,-400.0,0.00027397,5]
[381508536,1756241477771,-445.53,0.00027397,5]
[381508537,1756241477781,-683.05,0.00027397,5]
[381508538,1756241477791,-652.82,0.00027397,5]
[381508539,1756241477800,-928.9,0.00027397,5]
[381508540,1756241477810,-400.0,0.00027397,5]
[381508541,1756241477821,-459.23,0.00027397,5]
[381508542,1756241477830,-490.0,0.00027397,5]
[381508543,1756241477841,-400.0,0.00027397,5]
[381508544,1756241477850,-400.0,0.00027397,5]
[381508545,1756241477860,-730.1,0.00027397,5]
[381508546,1756241477870,-400.0,0.00027397,5]
[381508547,1756241477880,-490.0,0.00027397,5]
[381508548,1756241477890,-400.0,0.00027397,5]
[381508549,1756241477900,-400.0,0.00027397,5]
[381508550,1756241477909,-400.0,0.00027397,5]
[381508551,1756241477919,-1476.2,0.00027397,5]
[381508552,1756241477929,-490.0,0.00027397,5]
[381508553,1756241477940,-400.0,0.00027397,5]
[381508554,1756241477951,-400.0,0.00027397,5]
[381508555,1756241477961,-1645.9,0.00027397,5]
[381508556,1756241477971,-400.0,0.00027397,5]
[381508557,1756241477981,-400.0,0.00027397,5]
[381508558,1756241477991,-400.0,0.00027397,5]
[381508559,1756241478001,-422.53,0.00027397,5]
[381508560,1756241478011,-400.0,0.00027397,5]
[381508561,1756241478020,-400.39400164,0.00027397,5]
[381508562,1756241478031,-664.23,0.00027397,5]
[381508563,1756241478041,-989.59,0.00027397,5]
[381508564,1756241478051,-400.0,0.00027397,5]
[381508565,1756241478061,-605.34,0.00027397,5]
[381508566,1756241478072,-490.0,0.00027397,5]
[381508567,1756241478081,-400.0,0.00027397,5]
[381508568,1756241478091,-550.64,0.00027397,5]
[381508569,1756241478101,-1202.97,0.00027397,5]
[381508570,1756241478112,-400.0,0.00027397,5]
[381508571,1756241478122,-553.75,0.00027397,5]
[381508572,1756241478132,-400.0,0.00027397,5]
[381508573,1756241478143,-400.0,0.00027397,5]
[381508574,1756241478153,-525.82,0.00027397,5]
[381508575,1756241478449,-797.87,0.00027397,5]
[381508576,1756241478460,-400.0,0.00027397,5]
[381508577,1756241478471,-1176.87,0.00027397,5]
[381508578,1756241478482,-400.0,0.00027397,5]
[381508579,1756241478493,-400.0,0.00027397,5]
[381508580,1756241478503,-490.0,0.00027397,5]
[381508581,1756241478514,-153.858434,0.00027397,5]
[381508582,1756241478523,-490.0,0.00027397,5]
[381508583,1756241478533,-430.93,0.00027397,5]
[381508584,1756241478545,-400.0,0.00027397,5]
[381508585,1756241478555,-1024.28,0.00027397,5]
[381508586,1756241478565,-604.31,0.00027397,5]
[381508587,1756241478575,-400.0,0.00027397,5]
[381508588,1756241478585,-500.0,0.00027397,5]
[381508589,1756241478596,-1279.18,0.00027397,5]
[381508590,1756241478605,-500.0,0.00027397,5]
[381508591,1756241478615,-500.0,0.00027397,5]
[381508592,1756241478627,-400.0,0.00027397,5]
[381508593,1756241478638,-500.0,0.00027397,5]
[381508594,1756241478652,-500.0,0.00027397,5]
[381508595,1756241478663,-400.0,0.00027397,5]
[381508596,1756241478674,-500.0,0.00027397,5]
[381508597,1756241478684,-500.0,0.00027397,5]
[381508598,1756241478695,-267.42912236,0.00027397,5]
[381508599,1756241478704,-674.79,0.00027397,5]
[381508600,1756241478714,-400.0,0.00027397,5]
[381508601,1756241478725,-400.0,0.00027397,5]
[381508602,1756241478735,-724.53,0.00027397,5]
[381508603,1756241478745,-490.0,0.00027397,5]
[381508604,1756241478755,-426.50691966,0.00027397,5]
[381508605,1756241478765,-400.19676239,0.00027397,5]
[381508606,1756241478775,-400.0,0.00027397,5]
[381508607,1756241478785,-400.0,0.00027397,5]
[381508608,1756241478796,-400.0,0.00027397,5]
[381508609,1756241478806,-633.91,0.00027397,5]
[381508610,1756241478817,-400.0,0.00027397,5]
[381508611,1756241478827,-400.0,0.00027397,5]
[381508612,1756241478837,-400.0,0.00027397,5]
[381508613,1756241478848,-400.0,0.00027397,5]
[381508614,1756241478858,-400.0,0.00027397,5]
[381508615,1756241478869,-1107.16,0.00027397,5]
[381508616,1756241478879,-400.0,0.00027397,5]
[381508617,1756241478890,-750.15,0.00027397,5]
[381508618,1756241478900,-528.26,0.00027397,5]
[381508619,1756241478910,-400.0,0.00027397,5]
[381508620,1756241478920,-400.0,0.00027397,5]
[381508621,1756241478930,-479.66,0.00027397,5]
[381508622,1756241478940,-400.0,0.00027397,5]
[381508623,1756241478951,-490.80919601,0.00027397,5]
[381508624,1756241478961,-572.57,0.00027397,5]
[381508625,1756241478971,-1444.81,0.00027397,5]
[381508626,1756241478982,-1101.28,0.00027397,5]
[381508627,1756241478992,-703.76,0.00027397,5]
[381508628,1756241479002,-150.345703,0.00027397,5]
[381508629,1756241479012,-1175.69,0.00027397,5]
[381508630,1756241479021,-632.11,0.00027397,5]
[381508631,1756241479031,-1256.53,0.00027397,5]
[381508632,1756241479041,-400.0,0.00027397,5]
[381508633,1756241479051,-1274.54,0.00027397,5]
[381508634,1756241479061,-1122.89,0.00027397,5]
[381508635,1756241479070,-400.0,0.00027397,5]
[381508636,1756241479080,-400.0,0.00027397,5]
[381508637,1756241479090,-618.23,0.00027397,5]
[381508638,1756241479099,-400.0,0.00027397,5]
[381508639,1756241479109,-400.0,0.00027397,5]
[381508640,1756241479118,-165.749964,0.00027397,5]
[381508641,1756241479128,-400.0,0.00027397,5]
[381508642,1756241479138,-418.77,0.00027397,5]
[381508643,1756241479148,-554.31,0.00027397,5]
[381508644,1756241479159,-400.0,0.00027397,5]
[381508645,1756241479168,-500.0,0.00027397,5]
[381508646,1756241479178,-414.89386462,0.00027397,5]
[381508647,1756241479187,-972.44,0.00027397,5]
[381508648,1756241479197,-400.0,0.00027397,5]
[381508649,1756241479206,-400.0,0.00027397,5]
[381508650,1756241479216,-400.0,0.00027397,5]
[381508651,1756241479225,-685.1,0.00027397,5]
[381508652,1756241479235,-400.0,0.00027397,5]
[381508653,1756241479244,-651.5,0.00027397,5]
[381508654,1756241479254,-1281.45,0.00027397,5]
[381508655,1756241479264,-652.07,0.00027397,5]
[381508656,1756241479273,-958.82,0.00027397,5]
[381508657,1756241479283,-649.23,0.00027397,5]
[381508658,1756241479293,-400.0,0.00027397,5]
[381508659,1756241479303,-400.0,0.00027397,5]
[381508660,1756241479313,-400.0,0.00027397,5]
[381508661,1756241479322,-915.75,0.00027397,5]
[381508662,1756241479331,-400.0,0.00027397,5]
[381508663,1756241479341,-883.71,0.00027397,5]
[381508664,1756241479351,-946.76,0.00027397,5]
[381508665,1756241479360,-400.0,0.00027397,2]
[381508666,1756241479370,-894.85,0.00027397,5]
[381508667,1756241479380,-529.42,0.00027397,5]
[381508668,1756241479389,-400.0,0.00027397,5]
[381508669,1756241479398,-585.8,0.00027397,5]
[381508670,1756241479407,-400.0,0.00027397,2]
[381508671,1756241479417,-507.07,0.00027397,5]
[381508672,1756241479426,-784.82,0.00027397,5]
[381508673,1756241479436,-400.0,0.00027397,5]
[381508674,1756241479445,-576.33,0.00027397,5]
[381508675,1756241479455,-504.02,0.00027397,5]
[381508676,1756241479465,-400.0,0.00027397,2]
[381508677,1756241479475,-620.82,0.00027397,5]
[381508678,1756241479484,-853.7,0.00027397,5]
[381508679,1756241479494,-400.34326904,0.00027397,5]
[381508680,1756241479503,-465.83,0.00027397,5]
[381508681,1756241479513,-400.0,0.00027397,5]
[381508682,1756241479522,-500.0,0.00027397,5]
[381508683,1756241479531,-500.0,0.00027397,5]
[381508684,1756241479541,-500.0,0.00027397,5]
[381508685,1756241479551,-400.81664924,0.00027397,5]
[381508686,1756241479560,-500.0,0.00027397,5]
[381508687,1756241479569,-472.24053245,0.00027397,5]
[381508688,1756241479579,-400.0,0.00027397,5]
[381508689,1756241479588,-400.0,0.00027397,5]
[381508690,1756241479597,-400.0,0.00027397,5]
[381508691,1756241479606,-400.0,0.00027397,5]
[381508692,1756241479616,-1163.82,0.00027397,5]
[381508693,1756241479625,-400.0,0.00027397,5]
[381508694,1756241479635,-912.06,0.00027397,5]
[381508695,1756241479651,-874.35,0.00027397,5]
[381508696,1756241479660,-400.0,0.00027397,5]
[381508697,1756241479669,-635.15,0.00027397,5]
[381508698,1756241479679,-400.0,0.00027397,5]
[381508699,1756241479688,-1307.38,0.00027397,5]
[381508700,1756241479698,-1092.8,0.00027397,5]
[381508701,1756241479707,-400.0,0.00027397,5]
[381508702,1756241479716,-400.0,0.00027397,5]
[381508703,1756241479726,-594.72,0.00027397,5]
[381508704,1756241479736,-400.0,0.00027397,5]
[381508705,1756241479746,-812.28,0.00027397,5]
[381508706,1756241479755,-1458.57,0.00027397,5]
[381508707,1756241479764,-631.27,0.00027397,5]
[381508708,1756241479773,-1590.39,0.00027397,5]
[381508709,1756241479783,-400.0,0.00027397,5]
[381508710,1756241479792,-400.0,0.00027397,5]
[381508711,1756241479802,-400.0,0.00027397,5]
[381508712,1756241479812,-400.0,0.00027397,5]
[381508713,1756241479822,-637.67,0.00027397,5]
[381508714,1756241479831,-867.88,0.00027397,5]
[381508715,1756241479841,-1418.33,0.00027397,5]
[381508716,1756241479850,-400.0,0.00027397,5]
[381508717,1756241479860,-1313.49,0.00027397,5]
[381508718,1756241479870,-1558.02,0.00027397,5]
[381508719,1756241479880,-400.0,0.00027397,5]
[381508720,1756241479890,-400.0,0.00027397,5]
[381508721,1756241479899,-400.0,0.00027397,5]
[381508722,1756241479909,-430.08,0.00027397,5]
[381508723,1756241479919,-404.64,0.00027397,5]
[381508724,1756241479929,-400.0,0.00027397,5]
[381508725,1756241479939,-400.0,0.00027397,5]
[381508726,1756241479950,-400.0,0.00027397,5]
[381508727,1756241479959,-400.0,0.00027397,5]
[381508728,1756241479969,-439.24,0.00027397,5]
[381508729,1756241479979,-400.0,0.00027397,5]
[381508730,1756241479988,-400.0,0.00027397,5]
[381508731,1756241479997,-400.0,0.00027397,5]
[381508732,1756241480007,-400.0,0.00027397,5]
[381508733,1756241480016,-1013.92,0.00027397,5]
[381508734,1756241480025,-747.3,0.00027397,5]
[381508735,1756241480035,-400.0,0.00027397,5]
[381508736,1756241480044,-663.07,0.00027397,5]
[381508737,1756241480054,-400.0,0.00027397,5]
[381508738,1756241480063,-400.0,0.00027397,5]
[381508739,1756241480072,-1211.27,0.00027397,5]
[381508740,1756241480081,-400.0,0.00027397,5]
[381508741,1756241480091,-400.56018969,0.00027397,5]
[381508742,1756241480100,-456.98,0.00027397,5]
[381508743,1756241480110,-400.0,0.00027397,5]
[381508744,1756241480120,-400.0,0.00027397,5]
[381508745,1756241480130,-400.0,0.00027397,5]
[381508746,1756241480140,-400.0,0.00027397,5]
[381508747,1756241480149,-400.0,0.00027397,5]
[381508748,1756241480159,-745.4,0.00027397,5]
[381508749,1756241480168,-400.0,0.00027397,5]
[381508750,1756241480178,-400.0,0.00027397,5]
[381508751,1756241480188,-1231.96,0.00027397,5]
[381508752,1756241480197,-400.0,0.00027397,5]
[381508753,1756241480207,-1161.0,0.00027397,5]
[381508754,1756241480216,-500.0,0.00027397,5]
[381508755,1756241480227,-743.35,0.00027397,5]
[381508756,1756241480237,-500.0,0.00027397,5]
[381508757,1756241480247,-655.46,0.00027397,5]
[381508758,1756241480256,-400.0,0.00027397,5]
[381508759,1756241480265,-400.0,0.00027397,5]
[381508760,1756241480274,-400.0,0.00027397,5]
[381508761,1756241480283,-559.21,0.00027397,5]
[381508762,1756241480294,-400.0,0.00027397,5]
[381508763,1756241480303,-1000.0,0.00027397,5]
[381508764,1756241480313,-559.21,0.00027397,5]
[381508765,1756241480322,-400.0,0.00027397,5]
[381508766,1756241480331,-559.21,0.00027397,5]
[381508767,1756241480341,-848.08,0.00027397,5]
[381508768,1756241480350,-1159.42,0.00027397,5]
[381508769,1756241480359,-559.21,0.00027397,5]
[381508770,1756241480369,-559.21,0.00027397,5]
[381508771,1756241480378,-559.21,0.00027397,5]
[381508772,1756241480387,-559.21,0.00027397,5]
[381508773,1756241480396,-559.21,0.00027397,5]
[381508774,1756241480405,-400.0,0.00027397,5]
[381508775,1756241480415,-559.21,0.00027397,5]
[381508776,1756241480424,-559.21,0.00027397,5]
[381508777,1756241480433,-559.21,0.00027397,5]
[381508778,1756241480443,-400.0,0.00027397,5]
[381508779,1756241480452,-559.21,0.00027397,5]
[381508780,1756241480461,-559.21,0.00027397,5]
[381508781,1756241480471,-559.21,0.00027397,5]
[381508782,1756241480480,-559.21,0.00027397,5]
[381508783,1756241480490,-559.21,0.00027397,5]
[381508784,1756241480500,-1000.0,0.00027397,5]
[381508785,1756241480510,-400.0,0.00027397,5]
[381508786,1756241480520,-559.21,0.00027397,5]
[381508787,1756241480530,-559.21,0.00027397,5]
[381508788,1756241480540,-400.0,0.00027397,5]
[381508789,1756241480550,-649.59,0.00027397,5]
[381508790,1756241480560,-559.21,0.00027397,5]
[381508791,1756241480570,-400.0,0.00027397,5]
[381508792,1756241480579,-773.34,0.00027397,5]
[381508793,1756241480589,-559.21,0.00027397,5]
[381508794,1756241480598,-400.0,0.00027397,5]
[381508795,1756241480607,-490.0,0.00027397,5]